fUST/lending_fUST_20251115
["ID","MTS","AMOUNT","RATE_DAILY","PERIOD"]
[394000837,1763172650264,-358.8527,0.00052054,120]
[394000838,1763172650277,-500.0,0.00052054,120]
[394000839,1763172650290,-500.0,0.00052054,120]
[394000840,1763172650300,-358.8527,0.00052054,120]
[394000841,1763172650309,-936.67,0.00052054,120]
[394000842,1763172650319,-500.0,0.00052054,120]
[394000843,1763172650328,-500.0,0.00052054,120]
[394000844,1763172650337,-500.0,0.00052054,120]
[394000845,1763172650347,-500.0,0.00052054,120]
[394000846,1763172650355,-500.0,0.00052054,120]
[394000847,1763172650366,-511.24642548,0.00052054,120]
[394000848,1763172650375,-358.8527,0.00052054,120]
[394000849,1763172650384,-500.0,0.00052054,120]
[394000850,1763172650393,-358.8527,0.00052054,120]
[394000851,1763172650402,-501.18461798,0.00052054,120]
[394000852,1763172650645,-444.45286526,0.00052054,120]
[394000853,1763172650677,-500.0,0.00052054,120]
[394000854,1763172650689,-500.0,0.00052054,120]
[394000855,1763172650699,-500.0,0.00052054,120]
[394000856,1763172650709,-572.61,0.00052054,120]
[394000857,1763172650718,-500.0,0.00052054,120]
[394000858,1763172650727,-500.0,0.00052054,120]
[394000859,1763172650736,-500.0,0.00052054,120]
[394000860,1763172650746,-500.0,0.00052054,120]
[394000861,1763172650755,-188.956221,0.00052054,120]
[394000862,1763172650764,-500.0,0.00052054,120]
[394000863,1763172650772,-2708.03,0.00052054,120]
[394000864,1763172650782,-500.0,0.00052054,120]
[394000865,1763172650791,-500.0,0.00052054,120]
[394000866,1763172650799,-500.0,0.00052054,120]
[394000867,1763172650808,-500.0,0.00052054,120]
[394000868,1763172650817,-500.0,0.00052054,120]
[394000869,1763172650826,-151.0,0.00052054,120]
[394000870,1763172650836,-154.838564,0.00052054,120]
[394000871,1763172650845,-151.0,0.00052054,120]
[394000872,1763172650854,-233.564993,0.00052054,120]
[394000873,1763172650864,-500.0,0.00052054,120]
[394000874,1763172650873,-500.0,0.00052054,120]
[394000875,1763172650882,-500.0,0.00052054,120]
[394000876,1763172650891,-500.0,0.00052054,120]
[394000877,1763172650900,-979.1,0.00052054,120]
[394000878,1763172650908,-500.0,0.00052054,120]
[394000879,1763172650917,-500.0,0.00052054,120]
[394000880,1763172650926,-197.292001,0.00052054,120]
[394000881,1763172650935,-500.0,0.00052054,120]
[394000882,1763172650944,-151.0,0.00052054,120]
[394000883,1763172650953,-197.292001,0.00052054,120]
[394000884,1763172650962,-500.0,0.00052054,120]
[394000885,1763172650971,-500.0,0.00052054,120]
[394000886,1763172650979,-687.91,0.00052054,120]
[394000887,1763172650988,-500.0,0.00052054,120]
[394000888,1763172650997,-197.292001,0.00052054,120]
[394000889,1763172651006,-777.09,0.00052054,120]
[394000890,1763172651015,-500.0,0.00052054,120]
[394000891,1763172651024,-197.292001,0.00052054,120]
[394000892,1763172651033,-500.0,0.00052054,120]
[394000893,1763172651042,-500.0,0.00052054,120]
[394000894,1763172651051,-500.0,0.00052054,2]
[394000895,1763172651059,-500.0,0.00052054,60]
[394000896,1763172651069,-500.0,0.00052054,120]
[394000897,1763172651078,-1015.1,0.00052054,120]
[394000898,1763172651087,-502.26698064,0.00052054,120]
[394000899,1763172651097,-500.0,0.00052054,120]
[394000900,1763172651106,-500.0,0.00052054,120]
[394000901,1763172651115,-500.0,0.00052054,120]
[394000902,1763172651125,-500.0,0.00052054,120]
[394000903,1763172651134,-500.0,0.00052054,120]
[394000904,1763172651143,-525.42,0.00052054,120]
[394000905,1763172651153,-500.0,0.00052054,120]
[394000906,1763172651163,-500.0,0.00052054,120]
[394000907,1763172651172,-500.0,0.00052054,120]
[394000908,1763172651182,-500.0,0.00052054,120]
[394000909,1763172651191,-533.64,0.00052054,120]
[394000910,1763172651201,-927.9,0.00052054,120]
[394000911,1763172651210,-500.0,0.00052054,120]
[394000912,1763172651219,-290.291685,0.00052054,120]
[394000913,1763172651228,-500.0,0.00052054,120]
[394000914,1763172651237,-500.0,0.00052054,120]
[394000915,1763172651246,-500.0,0.00052054,120]
[394000916,1763172651255,-500.0,0.00052054,120]
[394000917,1763172651264,-356.203395,0.00052054,120]
[394000918,1763172651273,-500.0,0.00052054,120]
[394000919,1763172651282,-500.0,0.00052054,120]
[394000920,1763172651291,-500.0,0.00052054,120]
[394000921,1763172651300,-500.0,0.00052054,120]
[394000922,1763172651309,-356.203395,0.00052054,120]
[394000923,1763172651318,-356.203395,0.00052054,120]
[394000924,1763172651328,-500.0,0.00052054,120]
[394000925,1763172651336,-745.41,0.00052054,120]
[394000926,1763172651345,-500.0,0.00052054,120]
[394000927,1763172651355,-500.0,0.00052054,120]
[394000928,1763172651365,-356.203395,0.00052054,120]
[394000929,1763172651375,-500.0,0.00052054,120]
[394000930,1763172651384,-500.0,0.00052054,120]
[394000931,1763172651393,-1077.77,0.00052054,120]
[394000932,1763172651402,-500.0,0.00052054,120]
[394000933,1763172651411,-501.37250952,0.00052054,120]
[394000934,1763172651421,-500.0,0.00052054,120]
[394000935,1763172651431,-500.0,0.00052054,120]
[394000936,1763172651439,-500.0,0.00052054,120]
[394000937,1763172651449,-500.0,0.00052054,120]
[394000938,1763172651459,-500.0,0.00052054,120]
[394000939,1763172651472,-500.0,0.00052054,120]
[394000940,1763172651481,-500.0,0.00052054,120]
[394000941,1763172651491,-624.67,0.00052054,120]
[394000942,1763172651500,-509.9377078,0.00052054,120]
[394000943,1763172651510,-151.0,0.00052054,120]
[394000944,1763172651519,-500.0,0.00052054,120]
[394000945,1763172651528,-551.58,0.00052054,120]
[394000946,1763172651538,-500.0,0.00052054,120]
[394000947,1763172651547,-1776.75,0.00052054,120]
[394000948,1763172651557,-500.0,0.00052054,120]
[394000949,1763172651566,-577.74,0.00052054,120]
[394000950,1763172651576,-500.0,0.00052054,120]
[394000951,1763172651585,-500.0,0.00052054,7]
[394000952,1763172651595,-151.0,0.00052054,120]
[394000953,1763172651604,-151.0,0.00052054,120]
[394000954,1763172651614,-500.0,0.00052054,120]
[394000955,1763172651624,-958.77,0.00052054,120]
[394000956,1763172651635,-500.0,0.00052054,120]
[394000957,1763172651644,-151.0,0.00052054,120]
[394000958,1763172651653,-500.0,0.00052054,120]
[394000959,1763172651663,-500.0,0.00052054,120]
[394000960,1763172651672,-151.0,0.00052054,120]
[394000961,1763172651681,-4568.1,0.00052054,3]
[394000962,1763172651691,-501.44820126,0.00052054,120]
[394000963,1763172651700,-151.0,0.00052054,120]
[394000964,1763172651710,-500.0,0.00052054,120]
[394000965,1763172651719,-500.0,0.00052054,120]
[394000966,1763172651729,-500.0,0.00052054,120]
[394000967,1763172651738,-151.0,0.00052054,120]
[394000968,1763172651747,-195.642105,0.00052054,7]
[394000969,1763172651757,-195.642105,0.00052054,7]
[394000970,1763172651766,-500.0,0.00052054,120]
[394000971,1763172651775,-508.78304013,0.00052054,120]
[394000972,1763172651785,-500.0,0.00052054,120]
[394000973,1763172651794,-500.0,0.00052054,120]
[394000974,1763172651803,-195.642105,0.00052054,7]
[394000975,1763172651813,-500.0,0.00052054,120]
[394000976,1763172651822,-500.0,0.00052054,30]
[394000977,1763172651832,-500.0,0.00052054,120]
[394000978,1763172651841,-195.642105,0.00052054,7]
[394000979,1763172651851,-500.0,0.00052054,120]
[394000980,1763172651860,-505.47029849,0.00052054,120]
[394000981,1763172651870,-500.0,0.00052054,120]
[394000982,1763172651879,-501.49410869,0.00052054,120]
[394000983,1763172651890,-172.510293,0.00052054,120]
[394000984,1763172651900,-500.0,0.00052054,120]
[394000985,1763172651910,-1165.61,0.00052054,120]
[394000986,1763172651919,-694.38,0.00052054,120]
[394000987,1763172651928,-500.0,0.00052054,21]
[394000988,1763172651938,-849.34,0.00052054,120]
[394000989,1763172651947,-500.0,0.00052054,120]
[394000990,1763172651956,-501.38325079,0.00052054,120]
[394000991,1763172651965,-500.0,0.00052054,120]
[394000992,1763172651974,-1012.59,0.00052054,120]
[394000993,1763172651984,-500.0,0.00052054,10]
[394000994,1763172651993,-500.0,0.00052054,120]
[394000995,1763172652002,-500.0,0.00052054,120]
[394000996,1763172652012,-500.0,0.00052054,120]
[394000997,1763172652021,-158.214458,0.00052054,120]
[394000998,1763172652030,-1298.83,0.00052054,120]
[394000999,1763172652040,-647.88,0.00052054,120]
[394001000,1763172652049,-500.0,0.00052054,120]
[394001001,1763172652059,-1236.1,0.00052054,120]
[394001002,1763172652068,-500.0,0.00052054,120]
[394001003,1763172652077,-500.0,0.00052054,120]
[394001004,1763172652086,-500.0,0.00052054,120]
[394001005,1763172652095,-500.0,0.00052054,120]
[394001006,1763172652104,-500.0,0.00052054,120]
[394001007,1763172652114,-617.48,0.00052054,120]
[394001008,1763172652123,-500.0,0.00052054,120]
[394001009,1763172652132,-500.0,0.00052054,120]
[394001010,1763172652142,-500.0,0.00052054,120]
[394001011,1763172652151,-500.0,0.00052054,120]
[394001012,1763172652160,-500.0,0.00052054,120]
[394001013,1763172652169,-1133.68,0.00052054,120]
[394001014,1763172652178,-500.0,0.00052054,120]
[394001015,1763172652188,-500.0,0.00052054,120]
[394001016,1763172652197,-500.0,0.00052054,120]
[394001017,1763172652207,-500.0,0.00052054,120]
[394001018,1763172652217,-500.0,0.00052054,120]
[394001019,1763172652226,-587.62264164,0.00052054,7]
[394001020,1763172652236,-1584.66,0.00052054,120]
[394001021,1763172652246,-500.0,0.00052054,120]
[394001022,1763172652255,-533.92382,0.00052054,120]
[394001023,1763172652264,-500.0,0.00052054,120]
[394001024,1763172652274,-609.23568836,0.00052054,120]
[394001025,1763172652283,-588.297637,0.00052054,120]
[394001026,1763172652292,-500.5533503,0.00052054,120]
[394001027,1763172652301,-533.92382,0.00052054,120]
[394001028,1763172652311,-517.4683647,0.00052054,120]
[394001029,1763172652320,-588.297637,0.00052054,120]
[394001030,1763172652329,-533.92382,0.00052054,120]
[394001031,1763172652338,-500.0,0.00052054,120]
[394001032,1763172652348,-500.0,0.00052054,120]
[394001033,1763172652357,-500.6266355,0.00052054,120]
[394001034,1763172652366,-588.297637,0.00052054,120]
[394001035,1763172652375,-533.92382,0.00052054,120]
[394001036,1763172652384,-500.0,0.00052054,120]
[394001037,1763172652394,-501.16608723,0.00052054,120]
[394001038,1763172652403,-500.0,0.00052054,120]
[394001039,1763172652413,-501.58984838,0.00052054,120]
[394001040,1763172652422,-500.0,0.00052054,3]
[394001041,1763172652431,-588.297637,0.00052054,120]
[394001042,1763172652441,-500.0,0.00052054,120]
[394001043,1763172652450,-500.0,0.00052054,120]
[394001044,1763172652461,-500.0,0.00052054,120]
[394001045,1763172652472,-501.06907197,0.00052054,120]
[394001046,1763172652480,-1059.33,0.00052054,120]
[394001047,1763172652489,-501.41258442,0.00052054,120]
[394001048,1763172652499,-500.0,0.00052054,120]
[394001049,1763172652508,-595.00536352,0.00052054,120]
[394001050,1763172652518,-500.0,0.00052054,120]
[394001051,1763172652527,-501.94745855,0.00052054,120]
[394001052,1763172652535,-500.0,0.00052054,120]
[394001053,1763172652545,-500.0,0.00052054,120]
[394001054,1763172652554,-500.0,0.00052054,120]
[394001055,1763172652563,-500.0,0.00052054,120]
[394001056,1763172652572,-1158.62,0.00052054,120]
[394001057,1763172652581,-500.0,0.00052054,120]
[394001058,1763172652591,-500.0,0.00052054,120]
[394001059,1763172652600,-500.0,0.00052054,120]
[394001060,1763172652609,-4088.64,0.00052054,120]
[394001061,1763172652619,-500.0,0.00052054,120]
[394001062,1763172652628,-500.5971743,0.00052054,120]
[394001063,1763172652637,-500.0,0.00052054,120]
[394001064,1763172652645,-500.0,0.00052054,120]
[394001065,1763172652654,-500.0,0.00052054,120]
[394001066,1763172652663,-500.0,0.00052054,120]
[394001067,1763172652673,-1137.07,0.00052054,120]
[394001068,1763172652682,-500.37685447,0.00052054,120]
[394001069,1763172652692,-500.0,0.00052054,120]
[394001070,1763172652701,-500.0,0.00052054,120]
[394001071,1763172652710,-500.0,0.00052054,120]
[394001072,1763172652719,-522.16,0.00052054,120]
[394001073,1763172652728,-532.58209202,0.00052054,120]
[394001074,1763172652737,-652.53,0.00052054,120]
[394001075,1763172652747,-500.81390236,0.00052054,120]
[394001076,1763172652756,-500.0,0.00052054,120]
[394001077,1763172652765,-500.0,0.00052054,120]
[394001078,1763172652774,-777.42,0.00052054,120]
[394001079,1763172652783,-500.0,0.00052054,120]
[394001080,1763172652792,-500.0,0.00052054,120]
[394001081,1763172652801,-500.0,0.00052054,120]
[394001082,1763172652810,-500.0,0.00052054,120]
[394001083,1763172652819,-512.93460701,0.00052054,120]
[394001084,1763172652828,-500.0,0.00052054,120]
[394001085,1763172652837,-500.0,0.00052054,120]
[394001086,1763172652846,-500.0,0.00052054,120]
[394001087,1763172652855,-500.0,0.00052054,120]
[394001088,1763172652865,-500.0,0.00052054,120]
[394001089,1763172652874,-500.0,0.00052054,120]
[394001090,1763172652883,-500.0,0.00052054,120]
[394001091,1763172652893,-503.28900597,0.00052054,120]
[394001092,1763172652903,-621.95907427,0.00052054,120]
[394001093,1763172652912,-500.0,0.00052054,120]
[394001094,1763172652921,-500.0,0.00052054,120]
[394001095,1763172652930,-500.0,0.00052054,120]
[394001096,1763172652939,-2806.11,0.00052054,120]
[394001097,1763172652949,-500.0,0.00052054,120]
[394001098,1763172652958,-500.0,0.00052054,120]
[394001099,1763172652968,-500.0,0.00052054,120]
[394001100,1763172652977,-546.25,0.00052054,120]
[394001101,1763172652986,-500.0,0.00052054,120]
[394001102,1763172652995,-823.53,0.00052054,120]
[394001103,1763172653004,-1022.54,0.00052054,120]
[394001104,1763172653013,-500.0,0.00052054,120]
[394001105,1763172653023,-1369.59,0.00052054,120]
[394001106,1763172653032,-500.0,0.00052054,120]
[394001107,1763172653041,-500.0,0.00052054,120]
[394001108,1763172653051,-500.0,0.00052054,120]
[394001109,1763172653060,-520.15,0.00052054,120]
[394001110,1763172653069,-500.0,0.00052054,120]
[394001111,1763172653078,-500.0,0.00052054,120]
[394001112,1763172653087,-500.0,0.00052054,120]
[394001113,1763172653097,-504.46,0.00052054,120]
[394001114,1763172653106,-500.0,0.00052054,120]
[394001115,1763172653115,-500.0,0.00052054,120]
[394001116,1763172653125,-500.0,0.00052054,120]
[394001117,1763172653135,-151.0,0.00052054,30]
[394001118,1763172653144,-664.41,0.00052054,120]
[394001119,1763172653153,-201.91401503,0.00052054,30]
[394001120,1763172653163,-166.0,0.00052054,30]
[394001121,1763172653172,-151.0,0.00052054,30]
[394001122,1763172653181,-172.0,0.00052054,30]
[394001123,1763172653191,-151.0,0.00052054,30]
[394001124,1763172653201,-151.0,0.00052054,30]
[394001125,1763172653210,-500.0,0.00052054,120]
[394001126,1763172653220,-151.0,0.00052054,30]
[394001127,1763172653229,-500.0,0.00052054,120]
[394001128,1763172653239,-151.0,0.00052054,30]
[394001129,1763172653248,-500.0,0.00052054,120]
[394001130,1763172653258,-151.0,0.00052054,30]
[394001131,1763172653267,-151.0,0.00052054,30]
[394001132,1763172653277,-500.0,0.00052054,120]
[394001133,1763172653286,-631.34,0.00052054,120]
[394001134,1763172653295,-151.0,0.00052054,30]
[394001135,1763172653304,-151.0,0.00052054,30]
[394001136,1763172653313,-500.0,0.00052054,120]
[394001137,1763172653322,-500.0,0.00052054,120]
[394001138,1763172653332,-151.0,0.00052054,30]
[394001139,1763172653341,-151.0,0.00052054,30]
[394001140,1763172653351,-151.0,0.00052054,30]
[394001141,1763172653360,-500.0,0.00052054,120]
[394001142,1763172653370,-151.0,0.00052054,30]
[394001143,1763172653379,-500.0,0.00052054,120]
[394001144,1763172653389,-501.46842796,0.00052054,120]
[394001145,1763172653398,-151.0,0.00052054,30]
[394001146,1763172653407,-151.0,0.00052054,30]
[394001147,1763172653416,-151.0,0.00052054,30]
[394001148,1763172653426,-151.0,0.00052054,30]
[394001149,1763172653435,-502.71021068,0.00052054,120]
[394001150,1763172653444,-151.0,0.00052054,30]
[394001151,1763172653454,-151.0,0.00052054,30]
[394001152,1763172653467,-596.09,0.00052054,120]
[394001153,1763172653476,-151.0,0.00052054,30]
[394001154,1763172653485,-151.0,0.00052054,30]
[394001155,1763172653494,-151.0,0.00052054,30]
[394001156,1763172653506,-152.965475,0.00052054,120]
[394001157,1763172653515,-151.0,0.00052054,30]
[394001158,1763172653524,-151.0,0.00052054,30]
[394001159,1763172653533,-500.0,0.00052054,120]
[394001160,1763172653544,-151.0,0.00052054,30]
[394001161,1763172653553,-500.0,0.00052054,120]
[394001162,1763172653562,-151.0,0.00052054,30]
[394001163,1763172653572,-151.0,0.00052054,30]
[394001164,1763172653581,-151.0,0.00052054,30]
[394001165,1763172653591,-151.0,0.00052054,30]
[394001166,1763172653600,-151.0,0.00052054,30]
[394001167,1763172653609,-151.0,0.00052054,120]
[394001168,1763172653619,-1203.61,0.00052054,120]
[394001169,1763172653629,-151.0,0.00052054,2]
[394001170,1763172653638,-151.0,0.00052054,120]
[394001171,1763172653647,-270.58431507,0.00052054,30]
[394001172,1763172653778,-500.0,0.00052054,120]
[394001173,1763172653811,-500.0,0.00052054,120]
[394001174,1763172653820,-500.0,0.00052054,120]
[394001175,1763172653830,-877.29,0.00052054,120]
[394001176,1763172653840,-1000.0,0.00052054,2]
[394001177,1763172653850,-269.367307,0.00052054,120]
[394001178,1763172653860,-500.0,0.00052054,120]
[394001179,1763172653871,-500.0,0.00052054,120]
[394001180,1763172653881,-531.24,0.00052054,120]
[394001181,1763172653891,-300.3678215,0.00052055,30]
[394001182,1763172653901,-300.3678215,0.00052055,30]
[394001183,1763172653911,-593.4565077,0.00052055,30]
[394001184,1763172653921,-593.4565077,0.00052055,30]
[394001185,1763172653930,-593.4565077,0.00052055,30]
[394001186,1763172653941,-593.4565077,0.00052055,30]
[394001187,1763172653951,-1186.9130154,0.00052055,30]
[394001188,1763172653962,-164.2237678,0.00052055,30]
[394001189,1763172653971,-164.2237678,0.00052055,30]
[394001190,1763172653981,-164.2237678,0.00052055,30]
[394001191,1763172653990,-300.4421106,0.00052055,30]
[394001192,1763172654000,-164.2237678,0.00052055,30]
[394001193,1763172654009,-593.6265394,0.00052055,30]
[394001194,1763172654019,-164.2237678,0.00052055,30]
[394001195,1763172654029,-300.4421106,0.00052055,30]
[394001196,1763172654039,-593.6265394,0.00052055,30]
[394001197,1763172654049,-152.30323945,0.000521,10]
[394001198,1763172654059,-300.4421106,0.00052164,30]
[394001199,1763172654069,-593.6265394,0.00052164,30]
[394001200,1763172654079,-5000.0,0.000522,120]
[394001201,1763172654089,-573.97632884,0.0005225,30]
[394001202,1763172654100,-1000.0,0.0005232,120]
[394001203,1763172654110,-1000.0,0.00052325,120]
[394001204,1763172654121,-1000.0,0.00052325,120]
[394001205,1763172654132,-1000.0,0.00052325,120]
[394001206,1763172654142,-1000.0,0.00052325,120]
[394001207,1763172654153,-1004.0,0.00052325,120]
[394001208,1763172654163,-1000.0,0.00052325,120]
[394001209,1763172654174,-1000.0,0.00052325,120]
[394001210,1763172654185,-1000.0,0.00052325,120]
[394001211,1763172654195,-1000.0,0.00052325,120]
[394001212,1763172654206,-500.0,0.00052328,120]
[394001213,1763172654216,-500.0,0.00052328,120]
[394001214,1763172654227,-500.0,0.00052328,120]
[394001215,1763172654237,-500.0,0.00052328,120]
[394001216,1763172654247,-512.70969239,0.00052328,120]
[394001217,1763172654256,-522.55045114,0.00052328,120]
[394001218,1763172654266,-500.0,0.00052328,120]
[394001219,1763172654276,-500.0,0.00052328,120]
[394001220,1763172654286,-500.0,0.00052328,120]
[394001221,1763172654295,-500.0,0.00052328,2]
[394001222,1763172654305,-500.0,0.00052328,120]
[394001223,1763172654314,-500.0,0.00052328,120]
[394001224,1763172654323,-500.0,0.00052328,120]
[394001225,1763172654332,-500.0,0.00052328,120]
[394001226,1763172654342,-500.0,0.00052328,120]
[394001227,1763172654351,-500.0,0.00052328,120]
[394001228,1763172654361,-564.66095369,0.00052328,30]
[394001229,1763172654371,-609.02,0.00052328,120]
[394001230,1763172654381,-500.0,0.00052328,120]
[394001231,1763172654390,-500.0,0.00052328,120]
[394001232,1763172654400,-500.0,0.00052328,120]
[394001233,1763172654409,-500.0,0.00052328,120]
[394001234,1763172654418,-500.0,0.00052328,120]
[394001235,1763172654428,-500.0,0.00052328,120]
[394001236,1763172654437,-500.0,0.00052328,120]
[394001237,1763172654446,-500.0,0.00052328,120]
[394001238,1763172654456,-500.0,0.00052328,120]
[394001239,1763172654471,-500.0,0.00052328,120]
[394001240,1763172654481,-503.56558241,0.00052328,120]
[394001241,1763172654490,-500.0,0.00052328,120]
[394001242,1763172654500,-501.33210094,0.00052328,120]
[394001243,1763172654509,-500.0,0.00052328,30]
[394001244,1763172654518,-500.0,0.00052328,120]
[394001245,1763172654527,-500.0,0.00052328,120]
[394001246,1763172654536,-649.89,0.00052328,120]
[394001247,1763172654546,-500.0,0.00052328,120]
[394001248,1763172654555,-536.65,0.00052328,120]
[394001249,1763172654564,-500.0,0.00052328,120]
[394001250,1763172654574,-506.07510543,0.00052328,120]
[394001251,1763172654583,-500.0,0.00052328,120]
[394001252,1763172654592,-151.0,0.00052328,120]
[394001253,1763172654602,-229.659242,0.00052328,120]
[394001254,1763172654611,-500.0,0.00052328,120]
[394001255,1763172654621,-500.0,0.00052328,120]
[394001256,1763172654631,-500.0,0.00052328,120]
[394001257,1763172654640,-502.07071457,0.00052328,120]
[394001258,1763172654650,-500.0,0.00052328,120]
[394001259,1763172654659,-500.0,0.00052328,120]
[394001260,1763172654669,-500.0,0.00052328,120]
[394001261,1763172654679,-500.0,0.00052328,120]
[394001262,1763172654688,-500.0,0.00052328,120]
[394001263,1763172654698,-500.0,0.00052328,120]
[394001264,1763172654707,-500.0,0.00052328,120]
[394001265,1763172654717,-502.88775126,0.00052328,120]
[394001266,1763172654726,-500.0,0.00052328,120]
[394001267,1763172654735,-759.32,0.00052328,120]
[394001268,1763172654744,-500.0,0.00052328,120]
[394001269,1763172654754,-500.0,0.00052328,120]
[394001270,1763172654764,-500.0,0.00052328,120]
[394001271,1763172654773,-500.0,0.00052328,120]
[394001272,1763172654783,-500.0,0.00052328,120]
[394001273,1763172654792,-500.0,0.00052328,10]
[394001274,1763172654802,-500.0,0.00052328,120]
[394001275,1763172654811,-500.0,0.00052328,120]
[394001276,1763172654820,-500.0,0.00052328,120]
[394001277,1763172654830,-554.45,0.00052328,120]
[394001278,1763172654839,-500.0,0.00052328,120]
[394001279,1763172654848,-221.6,0.00052328,120]
[394001280,1763172654858,-629.47,0.00052328,120]
[394001281,1763172654867,-500.0,0.00052328,120]
[394001282,1763172654878,-500.0,0.00052328,120]
[394001283,1763172654887,-500.0,0.00052328,120]
[394001284,1763172654897,-500.0,0.00052328,120]
[394001285,1763172654907,-500.0,0.00052328,120]
[394001286,1763172654916,-518.70114848,0.00052328,120]
[394001287,1763172654926,-500.0,0.00052328,120]
[394001288,1763172654935,-500.0,0.00052328,120]
[394001289,1763172654944,-500.0,0.00052328,120]
[394001290,1763172654954,-500.0,0.00052328,120]
[394001291,1763172654963,-500.0,0.00052328,120]
[394001292,1763172654973,-500.0,0.00052328,120]
[394001293,1763172654983,-592.25377143,0.00052328,120]
[394001294,1763172654992,-506.04838768,0.00052328,120]
[394001295,1763172655001,-790.87,0.00052328,120]
[394001296,1763172655011,-582.92,0.00052328,120]
[394001297,1763172655020,-500.0,0.00052328,120]
[394001298,1763172655029,-500.0,0.00052328,120]
[394001299,1763172655039,-500.0,0.00052328,120]
[394001300,1763172655048,-427.88513201,0.00052328,120]
[394001301,1763172655058,-500.0,0.00052328,120]
[394001302,1763172655068,-590.85,0.00052328,120]
[394001303,1763172655077,-501.85841803,0.00052328,120]
[394001304,1763172655087,-500.0,0.00052328,120]
[394001305,1763172655098,-500.0,0.00052328,120]
[394001306,1763172655108,-500.0,0.00052328,120]
[394001307,1763172655117,-500.0,0.00052328,14]
[394001308,1763172655128,-501.91043614,0.00052328,120]
[394001309,1763172655139,-500.0,0.00052328,120]
[394001310,1763172655154,-500.0,0.00052328,120]
[394001311,1763172655163,-673.94,0.00052328,120]
[394001312,1763172655172,-500.0,0.00052328,120]
[394001313,1763172655182,-605.97540802,0.00052328,120]
[394001314,1763172655192,-500.0,0.00052328,120]
[394001315,1763172655201,-151.0,0.00052328,120]
[394001316,1763172655211,-151.0,0.00052328,120]
[394001317,1763172655220,-500.0,0.00052328,120]
[394001318,1763172655230,-500.0,0.00052328,120]
[394001319,1763172655239,-500.0,0.00052328,120]
[394001320,1763172655249,-500.0,0.00052328,120]
[394001321,1763172655257,-1000.0,0.00052328,2]
[394001322,1763172655267,-151.0,0.00052328,120]
[394001323,1763172655276,-500.0,0.00052328,120]
[394001324,1763172655287,-500.0,0.00052328,120]
[394001325,1763172655298,-544.93,0.00052328,120]
[394001326,1763172655307,-151.0,0.00052328,120]
[394001327,1763172655316,-500.0,0.00052328,120]
[394001328,1763172655325,-500.0,0.00052328,120]
[394001329,1763172655335,-500.0,0.00052328,120]
[394001330,1763172655345,-500.0,0.00052328,120]
[394001331,1763172655355,-500.0,0.00052328,120]
[394001332,1763172655364,-505.78904672,0.00052328,120]
[394001333,1763172655373,-500.0,0.00052328,120]
[394001334,1763172655383,-500.0,0.00052328,120]
[394001335,1763172655392,-571.3,0.00052328,120]
[394001336,1763172655401,-500.0,0.00052328,120]